{"text_format":"1","workbook":"xlsx","n_sheets":7,"sheets":["INICIO","Flujo del Proceso","Relacion CeGe (CeCo y Cebe)","Nomenclatura ","Modificación_Jerarquía","Organismo ","Parametros"],"not_rendered":{"charts":0,"images":3,"macros":1,"external_links":1,"defined_names":22,"comments":0,"pivot_tables":0},"unopened":[],"bounds":{"document_bytes":16777216,"sheet_cells":100000,"rows_first":2000,"rows_last":500,"rows_between":2000,"halvings":0,"cell_chars":16384,"cell_head_chars":4096},"cells_cut":0,"cells_raw":0,"read":"whole","date_system":"1900"}

{"sheet":"INICIO","index":0,"n_rows":33,"n_cols":6,"rows_kept":33,"cut":false,"hidden":false,"merged":[[0,1,4,13],[15,0,15,1],[15,2,15,13],[19,2,19,4],[19,5,19,6],[6,0,11,1],[13,0,13,1],[13,2,13,13],[14,0,14,1],[14,2,14,13],[20,2,20,4],[20,5,20,6],[21,2,21,4],[21,5,21,6],[22,2,22,4],[22,5,22,6],[23,2,23,4],[23,5,23,6],[30,0,30,4],[30,5,30,6],[31,0,31,4],[31,5,31,6],[24,2,24,4],[24,5,24,6],[25,2,25,4],[25,5,25,6],[28,0,28,6],[29,0,29,4],[29,5,29,6],[34,0,34,4],[34,5,34,6],[32,0,32,4],[32,5,32,6],[33,0,33,4],[33,5,33,6]]}
[null,"FORMULARIO DE MANTENCIÓN DE JERARQUIAS DE CENTROS DE COSTO - CENTRO DE BENEFICIO - CENTRO GESTOR"]
[]
[]
[]
[]
[]
["Propósito",null,"Este documento tiene como propósito entregar la información necesaria para modificación de jerarquías de centro de costo (CeCo), centro de beneficio (CeBe) o Cege en SAP. "]
[null,null,"Manteniendo las definiciones estandarizadas a nivel Corporativo."]
[]
[null,null,"La solicitud de actualización de Jerarquías debe ser autorizada por el DEA del organismo que solicita y por la Dirfap."]
[]
[]
[]
["Destinatario del Documento",null,"Casilla de correo:  SoporteSAP@uchile.cl\nAsunto:  ORGANISMO + Solicitud de Mantención de Jerarquía"]
["Nombre del Formulario",null,"FOR-DM-CO001C"]
["Versión Activa",null,{"$f":"A21","v":"1.0"}]
[]
["Historial de Edición del Documento"]
[]
["Versión","Fecha","Adiciones/Modificaciones",null,null,"Preparado/Revisado Por"]
["1.0","2022-02-28","Versión inicial",null,null,"Claudia Yañez"]
[]
[]
[]
[]
[]
[]
["Distribución del Documento Final"]
["\nLas siguientes personas estan designadas para recibir la versión final del documento"]
["Nombre y Apellido",null,null,null,null,"Organización/Cargo"]
["Encargado de Costos del Organismo",null,null,null,null,"Todos"]
["Encargado de Costos Dirfap",null,null,null,null,"Todos"]
["Gestores de demanda",null,null,null,null,"Organismos que posean el rol"]

{"sheet":"Flujo del Proceso","index":1,"n_rows":8,"n_cols":24,"rows_kept":8,"cut":false,"hidden":false,"merged":[]}
[{"$f":"INICIO!C15","v":"FOR-DM-CO001C"}]
["Version",null,"Actualización de Jerarquías de CeCo, CeBe y CeGe"]
[{"$f":"INICIO!C16","v":"1.0"},null,"La actualización de un objeto de Controlling posee relación con un objeto Presupuestario"]
[null,null,"CeCo se relaciona con un CeBe"]
[null,null,"Todo CeCo y todo CeBe se relaciona con un Centro Gestor (objeto de ppto)",null,null,null,null,null,null,"Relacion CeGe (CeCo y Cebe)'!A1"]
[]
[]
[null,null,null,null,null,null,null,null,null,null,null,null,null,null,null,null,null,null,null,null,null,null,null,"Paso 3"]

{"sheet":"Relacion CeGe (CeCo y Cebe)","index":2,"n_rows":31,"n_cols":5,"rows_kept":31,"cut":false,"hidden":false,"merged":[]}
[]
[]
[null,null,"Creación de Centro Gestor de Gasto (Relacionado a Centro de Costo)"]
[]
[null,null,"Campos","Obligatorio","Descripción"]
[null,null,"Código Centro gestor de gasto","Sí","Clave que identifica un gestor de gasto de manera unívoca (10  caracteres)."]
[null,null,"Denominación","Sí","Denominación del objeto (máx. 20 caracteres)"]
[null,null,"Descripción","Sí","Denominación del objeto, texto largo (Máx 40 caracteres)."]
[null,null,"Usuario responsable","Sí","Nombre del usuario SAP responsable de centro gestor de gastos (Recibirá notificaciones)."]
[null,null,"Responsable","Sí","Nombre o cargo de la persona responsable del centro gestor de gasto."]
[null,null,"Departamento","Sí","Identifica el nombre del departamento al que pertenece el centro gestor de gastos."]
[null,null,"Área de jerarquía","Sí","Nodo en donde debe quedar ubicado el centro gestor de gastos  en la jerarquía estándar."]
[null,null,"Moneda","Sí","Clave de la moneda en la que se gestionan los importes en el sistema."]
[null,null,"Área de jerarquía alternativa","Sí","Nodo en donde debe quedar ubicado el centro gestor de gastos  en la jerarquía alternativa."]
[]
[]
[]
[]
[null,null,"Creación de Centro Gestor de Ingresos (Relacionado a Centro de Beneficio)"]
[]
[null,null,"Campos","Obligatorio","Descripción"]
[null,null,"Código Centro gestor de ingreso","Sí","Clave que identifica un gestor de ingreso de manera unívoca (10  caracteres)."]
[null,null,"Denominación","Sí","Denominación del objeto (máx. 20 caracteres)"]
[null,null,"Descripción","Sí","Denominación del objeto, texto largo (Máx 40 caracteres)."]
[null,null,"Usuario responsable","Sí","Nombre del usuario SAP responsable de centro gestor de ingresos (Recibirá notificaciones)."]
[null,null,"Responsable","Sí","Nombre o cargo de la persona responsable del centro gestor de ingresos."]
[null,null,"Departamento","Sí","Identifica el nombre del departamento al que pertenece el centro gestor de ingresos."]
[null,null,"Área de jerarquía","Sí","Nodo en donde debe quedar ubicado el centro gestor de ingresos  en la jerarquía estándar."]
[null,null,"Sociedad","Sí","Clave que identifica unívocamente la sociedad financiera a la que pertenece el centro gestor de ingresos."]
[null,null,"Moneda","Sí","Clave de la moneda en la que se gestionan los importes en el sistema."]
[null,null,"Área de jerarquía alternativa","Sí","Nodo en donde debe quedar ubicado el centro gestor de ingresos  en la jerarquía alternativa."]

{"sheet":"Nomenclatura ","index":3,"n_rows":21,"n_cols":24,"rows_kept":21,"cut":false,"hidden":false,"merged":[[16,14,16,23],[17,14,17,23],[18,14,18,23],[19,14,19,23],[20,14,20,23],[2,1,2,23],[9,20,10,20],[9,21,10,21],[9,22,10,23],[12,13,12,23],[4,13,4,23],[5,13,5,23],[6,13,7,13],[7,14,7,21],[7,22,7,23],[9,6,9,7],[10,6,10,7],[9,8,10,8],[9,9,10,9],[9,10,10,11],[4,1,4,11],[14,14,14,23],[15,14,15,23],[9,13,10,13],[9,14,9,15],[10,14,10,15],[9,16,9,17],[10,16,10,17],[9,18,9,19],[10,18,10,19],[19,2,19,11],[20,2,20,11],[12,1,12,11],[14,2,14,11],[15,2,15,11],[16,2,16,11],[17,2,17,11],[18,2,18,11],[5,1,5,11],[6,1,7,1],[7,2,7,9],[7,10,7,11],[9,1,10,1],[9,2,9,3],[10,2,10,3],[9,4,9,5],[10,4,10,5]]}
[]
[]
[null,"La codificación de los centros de costo será la misma que los centros de beneficios, representando una misma área de responsabilidad en cada de sus respectivos módulos."]
[]
[null,"Código Centros de Costo (CeCo)",null,null,null,null,null,null,null,null,null,null,null,"Código Centros de Beneficio (CeBe)"]
[null,"10 caracteres",null,null,null,null,null,null,null,null,null,null,null,"10 caracteres"]
[null,"Posiciones",1,2,3,4,5,6,7,8,9,10,null,"Posiciones",1,2,3,4,5,6,7,8,9,10]
[null,null,"Identifica niveles de la estructura organizativa",null,null,null,null,null,null,null,"Identifica al Centro de Costo",null,null,null,"Identifica niveles de la estructura organizativa",null,null,null,null,null,null,null,"Identifica al Centro de Beneficio"]
[null,"Tipo","Letra","Número o letra","Número","Número","Número","Número","Número","Número","Número","Número",null,"Tipo","Letra","Número o letra","Número","Número","Número","Número","Número","Número","Número","Número"]
[null,"Uso","Organismo",null,"Depto./Escuelas/",null,"División/",null,"Secciones","Libre","CeCo",null,null,"Uso","Organismo",null,"Depto./Escuelas/",null,"División/",null,"Secciones","Libre","CeBe"]
[null,null,"Segmento/División",null,"Direcciones/Centros",null,"Subdirecciones",null,null,null,null,null,null,null,"Segmento/División",null,"Direcciones/Centros",null,"Subdirecciones"]
[]
[null,"Detalle de uso",null,null,null,null,null,null,null,null,null,null,null,"Detalle de uso"]
[]
[null,"Posiciones","Descripción",null,null,null,null,null,null,null,null,null,null,"Posiciones","Descripción"]
[null,"1 y 2","Identifica la sociedad FI",null,null,null,null,null,null,null,null,null,null,"1 y 2","Identifica la sociedad FI"]
[null,"3 y 4","Identifica Depto./Escuelas/Direcciones/Centros o nivel equivalente",null,null,null,null,null,null,null,null,null,null,"3 y 4","Identifica Depto./Escuelas/Direcciones/Centros o nivel equivalente"]
[null,"5 y 6","Identifica División/Subdirecciones o nivel equivalente",null,null,null,null,null,null,null,null,null,null,"5 y 6","Identifica División/Subdirecciones o nivel equivalente"]
[null,7,"Identifica Secciones o nivel equivalente",null,null,null,null,null,null,null,null,null,null,7,"Identifica Secciones o nivel equivalente"]
[null,8,"Nivel libre disposición",null,null,null,null,null,null,null,null,null,null,8,"Nivel libre disposición"]
[null,"9 y 10","Identifica el Centro de Costo",null,null,null,null,null,null,null,null,null,null,"9 y 10","Identifica el Centro de Beneficio"]

{"sheet":"Modificación_Jerarquía","index":4,"n_rows":21,"n_cols":5,"rows_kept":21,"cut":false,"hidden":false,"merged":[[11,1,11,2]]}
[{"$f":"INICIO!C15","v":"FOR-DM-CO001C"}]
["Version"]
[{"$f":"INICIO!C16","v":"1.0"}]
[null,"Formulario de Modificación de Jerarquías"]
[null,"Completar sólo los datos a modificar"]
[]
[null,"Organismo",null,"*",{"$f":"IF($C$7=\"\",\"Ingrese el código SAP de su Organismo\",\"\")","v":"Ingrese el código SAP de su Organismo"}]
[null,"Solicitante",null,"*",{"$f":"IF($C$8=\"\",\"Ingrese su Nombre y Apellido\",\"\")","v":"Ingrese su Nombre y Apellido"}]
[null,"E-mail Solicitante",null,"*",{"$f":"IF($C$9=\"\",\"Ingrese su correo electrónico\",\"\")","v":"Ingrese su correo electrónico"}]
[null,"Fecha Solicitud",{"$f":"TODAY()","v":"2022-07-01"},"*"]
[]
[null,"Datos Generales"]
[null,"Sociedad CO ","U000-Universidad de Chile","*",{"$f":"IF($C$13=\"\",\"Campo de llenado automático que identifica una sociedad CO de forma unívoca\",\"\")","v":""}]
[null,"Sociedad  Financiera","U001-Universidad de Chile","*",{"$f":"IF($C$14=\"\",\"Campo de llenado automático que indica la sociedad financiera\",\"\")","v":""}]
[null,"Jerarquía a modificar",null,"*",{"$f":"IF($C$15=\"\",\"Ingrese el tipo de jerarquía a modificar\",\"\")","v":"Ingrese el tipo de jerarquía a modificar"}]
[null,"Denominación de la Jerarquía a Modificar",null,"*",{"$f":"IF($C$16=\"\",\"Ingrese la denominación de la Jerarquía a actualizar\",\"\")","v":"Ingrese la denominación de la Jerarquía a actualizar"}]
[null,"Usuario responsable de la estructura asociada a la Jerarquía ",null,"*",{"$f":"IF($C$17=\"\",\"Ingrese el responsable de la estructura a modificar\",\"\")","v":"Ingrese el responsable de la estructura a modificar"}]
[null,"Director Económico responsable",null,"*",{"$f":"IF($C$17=\"\",\"Ingrese el nombre del DEA del organismo que solicita\",\"\")","v":"Ingrese el nombre del DEA del organismo que solicita"}]
[null,"Área de jerarquía de que depende la estructura a modificar",null,"*",{"$f":"IF($C$19=\"\",\"Ingrese el nodo de quien depende la jerarquía a modificar\",\"\")","v":"Ingrese el nodo de quien depende la jerarquía a modificar"}]
[]
[null,"Motivo de la modificación"]

{"sheet":"Organismo ","index":5,"n_rows":67,"n_cols":3,"rows_kept":67,"cut":false,"hidden":true,"merged":[]}
["Segmento","Nombre 2","Organismo"]
["A101","Facultad de Arquitectura y Urbanismo",{"$f":"CONCATENATE(A2,\"-\",B2)","v":"A101-Facultad de Arquitectura y Urbanismo"}]
["A201","Facultad de Artes",{"$f":"CONCATENATE(A3,\"-\",B3)","v":"A201-Facultad de Artes"}]
["A301","Facultad de Ciencias","A301-Facultad de Ciencias"]
["A401","Facultad de Ciencias Agronómicas","A401-Facultad de Ciencias Agronómicas"]
["A501","Facultad de Economía y Negocio","A501-Facultad de Economía y Negocio"]
["A601","Facultad de Ciencias Físicas y Matemáticas","A601-Facultad de Ciencias Físicas y Matemáticas"]
["A701","Facultad de Ciencias Forestales","A701-Facultad de Ciencias Forestales"]
["A801","Facultad de Ciencias Químicas","A801-Facultad de Ciencias Químicas"]
["A901","Facultad de Ciencias Sociales","A901-Facultad de Ciencias Sociales"]
["AB01","Facultad de Ciencias Veterinaria","AB01-Facultad de Ciencias Veterinaria"]
["AC01","Facultad de Derecho","AC01-Facultad de Derecho"]
["AD01","Facultad de Filosofía y Humanidades","AD01-Facultad de Filosofía y Humanidades"]
["AF01","Facultad de Medicina","AF01-Facultad de Medicina"]
["AG01","Facultad de Odontología","AG01-Facultad de Odontología"]
["AH01","Instituto de Nutrición y Tecnología","AH01-Instituto de Nutrición y Tecnología"]
["AJ01","Instituto de Estudios Internacionales","AJ01-Instituto de Estudios Internacionales"]
["AK01","Instituto de Asuntos Públicos","AK01-Instituto de Asuntos Públicos"]
["AL01","Instituto de la Comunicación e Imagen","AL01-Instituto de la Comunicación e Imagen"]
["AM01","Instituto de Estudios Avanzado","AM01-Instituto de Estudios Avanzado"]
["AN01","Programa Académico de Bachilleto","AN01-Programa Académico de Bachilleto"]
["AP01","Liceo Manuel de Salas","AP01-Liceo Manuel de Salas"]
["AQ01","Programa Transversal de Educación","AQ01-Programa Transversal de Educación"]
["C101","Rectoría","C101-Rectoría"]
["C201","Prorrectoría","C201-Prorrectoría"]
["C301","Vicerrectoría de Asuntos Académicos","C301-Vicerrectoría de Asuntos Académicos"]
["C401","Vicerrectoría de Asuntos Económicos y Gestión Institucional","C401-Vicerrectoría de Asuntos Económicos y Gestión Institucional"]
["C501","Vicerrectoría de Investigación","C501-Vicerrectoría de Investigación"]
["C601","Vicerrectoría de Extensión y Comunicaciones","C601-Vicerrectoría de Extensión y Comunicaciones"]
["C701","Vicerrectoría de Asuntos Estudiantiles y Comunitar","C701-Vicerrectoría de Asuntos Estudiantiles y Comunitar"]
["C801","Vicerrectoría de Tecnologías de la Información","C801-Vicerrectoría de Tecnologías de la Información"]
["E101","Centro de Extensión Artística y Cultural Domingo S","E101-Centro de Extensión Artística y Cultural Domingo S"]
["F101","Departamento de Evaluación, Medición y Registro Ed","F101-Departamento de Evaluación, Medición y Registro Ed"]
["F201","Campus Juan Gómez Millas","F201-Campus Juan Gómez Millas"]
["G101","Fondo General Tesorería","G101-Fondo General Tesorería"]
["G201","Fondo General VAEGI","G201-Fondo General VAEGI"]
["H101","Hospital J.J. Aguirre","H101-Hospital J.J. Aguirre"]
["P101","Convenios de Desempeño ( VAEGI)","P101-Convenios de Desempeño ( VAEGI)"]
["P201","Convenio de Desempeño Iniciativa Bicentenaria C.J.","P201-Convenio de Desempeño Iniciativa Bicentenaria C.J."]
["P301","MECESUP","P301-MECESUP"]
["P401","Parque Científico Tecnológico Valle Lo Aguirre","P401-Parque Científico Tecnológico Valle Lo Aguirre"]
["C501","Vicerrectoría","C501-Vicerrectoría"]
["C601","Extensión y Comunicaciones","C601-Extensión y Comunicaciones"]
["C701","Vicerrectoría","C701-Vicerrectoría"]
["C702","VAEC Fed. De Estudiantes","C702-VAEC Fed. De Estudiantes"]
["C702","VAEC SEMDA CENTRAL","C702-VAEC SEMDA CENTRAL"]
["C702","VAEC SEMDA CJGM","C702-VAEC SEMDA CJGM"]
["C702","VAEC SEMDA FCFM","C702-VAEC SEMDA FCFM"]
["C702","VAEC SEMDA CAMPUS SUR","C702-VAEC SEMDA CAMPUS SUR"]
["C702","VAEC Residencia Mario Ojeda","C702-VAEC Residencia Mario Ojeda"]
["C702","VAEC Residencia Paulina Starr","C702-VAEC Residencia Paulina Starr"]
["C702","VAEC Residencia JGM","C702-VAEC Residencia JGM"]
["C702","VAEC Complejo Tenístico","C702-VAEC Complejo Tenístico"]
["C702","VAEC Piscina (Deporte Azul)","C702-VAEC Piscina (Deporte Azul)"]
["C702","VAEC Campo Deportivo JGM","C702-VAEC Campo Deportivo JGM"]
["C702","VAEC Refugio Farellones","C702-VAEC Refugio Farellones"]
["C801","VTI","C801-VTI"]
["E101","CEAC - Teatro","E101-CEAC - Teatro"]
["E101","CEAC","E101-CEAC"]
["F101","DEMRE","F101-DEMRE"]
["F201","Campus Juan Gómez M.","F201-Campus Juan Gómez M."]
["G101","Fondo General Tesorería","G101-Fondo General Tesorería"]
["G201","Fdo Gral VAEGI","G201-Fdo Gral VAEGI"]
["P101","Convenios Desempeño","P101-Convenios Desempeño"]
["P201","C Desempeño IBCJGM","P201-C Desempeño IBCJGM"]
["P301","MECESUP","P301-MECESUP"]
["P401","PCT Valle Lo Aguirre",{"$f":"CONCATENATE(A67,\"-\",B67)","v":"P401-PCT Valle Lo Aguirre"}]

{"sheet":"Parametros","index":6,"n_rows":192,"n_cols":11,"rows_kept":192,"cut":false,"hidden":true,"merged":[]}
["MONEDAS",null,null,null,"Flag",null,"Clases",null,null,null,"Tipo Jerarquía Estándar"]
["Moneda","Glosa","Moneda",null,"X",null,"E","Desarrollo",{"$f":"CONCATENATE(G2,\"-\",H2)","v":"E-Desarrollo"},null,"Centro de Costo"]
["AED","Dirham Emiratos Árabes Unidos",{"$f":"CONCATENATE(A3,\"-\",B3)","v":"AED-Dirham Emiratos Árabes Unidos"},null,null,null,"F","Fabricación",{"$f":"CONCATENATE(G3,\"-\",H3)","v":"F-Fabricación"},null,"Centro de Beneficio"]
["AFA","Afgani (ant.)",{"$f":"CONCATENATE(A4,\"-\",B4)","v":"AFA-Afgani (ant.)"},null,null,null,"G","Logística","G-Logística",null,"Centros Gestores"]
["AFN","Afgani","AFN-Afgani",null,null,null,"H","CeCo auxiliar","H-CeCo auxiliar"]
["ALL","Lek albano","ALL-Lek albano",null,null,null,"L","Dirección","L-Dirección"]
["AMD","Dram armenio","AMD-Dram armenio",null,null,null,"M","Material","M-Material"]
["ANG","Florines antillanos","ANG-Florines antillanos",null,null,null,"S","Social","S-Social"]
["AOA","Kwanza angoleño","AOA-Kwanza angoleño",null,null,null,"V","Comercial","V-Comercial"]
["AON","Nuevo kwanza angoleño (ant.)","AON-Nuevo kwanza angoleño (ant.)",null,null,null,"W","Administración","W-Administración"]
["AOR","Kwanza angoleño reajustado (ant.)","AOR-Kwanza angoleño reajustado (ant.)"]
["ARS","Peso argentino","ARS-Peso argentino"]
["AUD","Dólar australiano","AUD-Dólar australiano"]
["AWG","Florín arubeño","AWG-Florín arubeño"]
["AZN","Manat azerbaiyano","AZN-Manat azerbaiyano"]
["BAM","Marco convertible Bosnia-Herzegovina","BAM-Marco convertible Bosnia-Herzegovina"]
["BBD","Dólar Barbados","BBD-Dólar Barbados"]
["BDT","Taka Bangladesh","BDT-Taka Bangladesh"]
["BGN","Lev búlgaro","BGN-Lev búlgaro"]
["BHD","Dinar Bahrein","BHD-Dinar Bahrein"]
["BIF","Franco burundés","BIF-Franco burundés"]
["BMD","Dólar Bermudas","BMD-Dólar Bermudas"]
["BND","Dólar Brunei","BND-Dólar Brunei"]
["BOB","Boliviano","BOB-Boliviano"]
["BRL","Real brasileño","BRL-Real brasileño"]
["BSD","Dólar Bahamas","BSD-Dólar Bahamas"]
["BTN","Ngultrum del Buthan","BTN-Ngultrum del Buthan"]
["BWP","Pula botswanesa","BWP-Pula botswanesa"]
["BYB","Rublo bielorruso (ant.)","BYB-Rublo bielorruso (ant.)"]
["BYN","Rublo bielorruso nuevo","BYN-Rublo bielorruso nuevo"]
["BYR","Rublo bielorruso","BYR-Rublo bielorruso"]
["BZD","Dólar Belice","BZD-Dólar Belice"]
["CAD","Dólar canadiense","CAD-Dólar canadiense"]
["CDF","Franco CFA","CDF-Franco CFA"]
["CFP","Franco francés (islas del Pacífico)","CFP-Franco francés (islas del Pacífico)"]
["CHF","Franco suizo","CHF-Franco suizo"]
["CLP","Pesos chilenos","CLP-Pesos chilenos"]
["CLP4",null,"CLP4-"]
["CNY","Yuan de la R.P.China","CNY-Yuan de la R.P.China"]
["COP","Peso colombiano","COP-Peso colombiano"]
["CRC","Colón costarricense","CRC-Colón costarricense"]
["CSD","Dinar serbio (antiguo)","CSD-Dinar serbio (antiguo)"]
["CUC","Peso convertible","CUC-Peso convertible"]
["CUP","Peso cubano","CUP-Peso cubano"]
["CVE","Escudo Cabo Verde","CVE-Escudo Cabo Verde"]
["CZK","Corona checa","CZK-Corona checa"]
["DJF","Franco Yibuti","DJF-Franco Yibuti"]
["DKK","Corona danesa","DKK-Corona danesa"]
["DOP","Peso dominicano","DOP-Peso dominicano"]
["DZD","Dinar argelino","DZD-Dinar argelino"]
["EGP","Libra egipcia","EGP-Libra egipcia"]
["ERN","Nakfa de Eritrea","ERN-Nakfa de Eritrea"]
["ETB","Birr etíope","ETB-Birr etíope"]
["EUR","Euro europeo","EUR-Euro europeo"]
["EUR","Euro europeo","EUR-Euro europeo"]
["EUR4","Euro europeo","EUR4-Euro europeo"]
["FJD","Dólar fiyiano","FJD-Dólar fiyiano"]
["FKP","Libra Malvinas","FKP-Libra Malvinas"]
["GBP","Libra esterlina","GBP-Libra esterlina"]
["GEL","Lari georgiano","GEL-Lari georgiano"]
["GHC","Cedi ghanés (ant.)","GHC-Cedi ghanés (ant.)"]
["GHS","Cedi ghanés","GHS-Cedi ghanés"]
["GIP","Libra gibraltareña","GIP-Libra gibraltareña"]
["GMD","Dalasi gambiano","GMD-Dalasi gambiano"]
["GNF","Franco guineano","GNF-Franco guineano"]
["GTQ","Quetzal guatemalteco","GTQ-Quetzal guatemalteco"]
["GYD","Dólar guyanés","GYD-Dólar guyanés"]
["HKD","Dólar Hong Kong",{"$f":"CONCATENATE(A68,\"-\",B68)","v":"HKD-Dólar Hong Kong"}]
["HNL","Lempira hondureño","HNL-Lempira hondureño"]
["HRK","Kuna croata","HRK-Kuna croata"]
["HTG","Gourde haitiano","HTG-Gourde haitiano"]
["HUF","Forint húngaro","HUF-Forint húngaro"]
["IDR","Rupia indonesia","IDR-Rupia indonesia"]
["ILS","Shekel israelí","ILS-Shekel israelí"]
["INR","Rupia hindú","INR-Rupia hindú"]
["IQD","Dinar iraquí","IQD-Dinar iraquí"]
["IRR","Rial iraní","IRR-Rial iraní"]
["ISK","Corona islandesa","ISK-Corona islandesa"]
["JMD","Dólar jamaicano","JMD-Dólar jamaicano"]
["JOD","Dinar jordano","JOD-Dinar jordano"]
["JPY","Yen japonés","JPY-Yen japonés"]
["KES","Chelín keniata","KES-Chelín keniata"]
["KGS","Som de Kirguizistán","KGS-Som de Kirguizistán"]
["KHR","Riel camboyano","KHR-Riel camboyano"]
["KMF","Franco Comores","KMF-Franco Comores"]
["KPW","Won coreano","KPW-Won coreano"]
["KRW","Won surcoreano","KRW-Won surcoreano"]
["KWD","Dinar kuwaití","KWD-Dinar kuwaití"]
["KYD","Dólar Caimanes","KYD-Dólar Caimanes"]
["KZT","Tenge Kazajstán","KZT-Tenge Kazajstán"]
["LAK","Kip laosiano","LAK-Kip laosiano"]
["LBP","Libra libanesa","LBP-Libra libanesa"]
["LKR","Rupia Sri Lanka","LKR-Rupia Sri Lanka"]
["LRD","Dólar liberiano","LRD-Dólar liberiano"]
["LSL","Loti Lesotho","LSL-Loti Lesotho"]
["LTL","Lita lituano","LTL-Lita lituano"]
["LVL","Lat letón","LVL-Lat letón"]
["LYD","Dinar libio","LYD-Dinar libio"]
["MAD","Dirham marroquí","MAD-Dirham marroquí"]
["MDL","Lei moldavo","MDL-Lei moldavo"]
["MGA","Ariary malgache","MGA-Ariary malgache"]
["MKD","Dinar macedionio","MKD-Dinar macedionio"]
["MMK","Kyat de la Unión de Myanmar (Birmania)","MMK-Kyat de la Unión de Myanmar (Birmania)"]
["MNT","Tugrik mongolés","MNT-Tugrik mongolés"]
["MOP","Pataca de Macao","MOP-Pataca de Macao"]
["MRO","Ouguiya mauritana","MRO-Ouguiya mauritana"]
["MRU","Ouguiya mauritana","MRU-Ouguiya mauritana"]
["MUR","Rupia Mauricio","MUR-Rupia Mauricio"]
["MVR","Rufiyaa maldiva","MVR-Rufiyaa maldiva"]
["MWK","Kwacha malawiano","MWK-Kwacha malawiano"]
["MXN","Pesos mexicanos","MXN-Pesos mexicanos"]
["MYR","Ringgit malayo","MYR-Ringgit malayo"]
["MZM","Metical mozambiqueño (antiguo)","MZM-Metical mozambiqueño (antiguo)"]
["MZN","Metical mozambiqueño","MZN-Metical mozambiqueño"]
["NAD","Dolar namíbio","NAD-Dolar namíbio"]
["NGN","Naira nigeriana","NGN-Naira nigeriana"]
["NIO","Cordoba Oro nicaragüense","NIO-Cordoba Oro nicaragüense"]
["NOK","Corona noruega","NOK-Corona noruega"]
["NPR","Rupia nepalesa","NPR-Rupia nepalesa"]
["NZD","Dólar neozelandés","NZD-Dólar neozelandés"]
["NZD5","Dólar neozelandés","NZD5-Dólar neozelandés"]
["OMR","Rial omaní","OMR-Rial omaní"]
["PAB","Balboa panameño","PAB-Balboa panameño"]
["PEN","Nuevo Sol peruano","PEN-Nuevo Sol peruano"]
["PGK","Kina papú","PGK-Kina papú"]
["PHP","Peso filipino","PHP-Peso filipino"]
["PKR","Rupia pakistaní","PKR-Rupia pakistaní"]
["PLN","Zloty polaco (nuevo)","PLN-Zloty polaco (nuevo)"]
["PYG","Guaraní paraguayo","PYG-Guaraní paraguayo"]
["QAR","Riyal katarí","QAR-Riyal katarí"]
["RMB","RenMinBi Yuan chino","RMB-RenMinBi Yuan chino"]
["ROL","Leu rumano (antiguo)",{"$f":"CONCATENATE(A132,\"-\",B132)","v":"ROL-Leu rumano (antiguo)"}]
["RON","Leu rumano","RON-Leu rumano"]
["RSD","Dinar serbio","RSD-Dinar serbio"]
["RUB","Rublo ruso","RUB-Rublo ruso"]
["RWF","Franco ruandés","RWF-Franco ruandés"]
["SAR","Riyal saudita","SAR-Riyal saudita"]
["SBD","Dólar Salomón","SBD-Dólar Salomón"]
["SCR","Rupia Seychelles","SCR-Rupia Seychelles"]
["SDG","Libra sudanesa","SDG-Libra sudanesa"]
["SEK","Corona sueca","SEK-Corona sueca"]
["SGD","Dólar Singapur","SGD-Dólar Singapur"]
["SHP","Libra de Sta. Elena","SHP-Libra de Sta. Elena"]
["SLL","Leone de Sierra Leona","SLL-Leone de Sierra Leona"]
["SOS","Chelín somalí","SOS-Chelín somalí"]
["SRD","Dólar surinamita","SRD-Dólar surinamita"]
["SRG","Florín surinamita (antiguo)","SRG-Florín surinamita (antiguo)"]
["SSP","Libra sursudanesa","SSP-Libra sursudanesa"]
["STD","Dobra Santo Tomé","STD-Dobra Santo Tomé"]
["STN",null,"STN-"]
["SVC","Colón salvadoreño","SVC-Colón salvadoreño"]
["SYP","Libra siria","SYP-Libra siria"]
["SZL","Lilangeni Swazilandia","SZL-Lilangeni Swazilandia"]
["THB","Baht tailandés","THB-Baht tailandés"]
["TJR","Rublo tadjik (ant.)","TJR-Rublo tadjik (ant.)"]
["TJS","Somoni de Tayikistán","TJS-Somoni de Tayikistán"]
["TMM","Manat turcomano (antiguo)","TMM-Manat turcomano (antiguo)"]
["TMT","Manat turcomano","TMT-Manat turcomano"]
["TND","Dinar tunecino","TND-Dinar tunecino"]
["TOP","Pa'anga tongano","TOP-Pa'anga tongano"]
["TRL","Lira turca (antigua)","TRL-Lira turca (antigua)"]
["TRY","Lira turca","TRY-Lira turca"]
["TTD","Dólar Trinidad y Tobago","TTD-Dólar Trinidad y Tobago"]
["TWD","Dólar taiwanés nuevo","TWD-Dólar taiwanés nuevo"]
["TZS","Chelín tanzanés","TZS-Chelín tanzanés"]
["UAH","Griwna ucraniano","UAH-Griwna ucraniano"]
["UF","Unidad de Fomento","UF-Unidad de Fomento"]
["UGX","Chelín ugandés","UGX-Chelín ugandés"]
["USD","Dólar americano","USD-Dólar americano"]
["USDU","Dólar universitario","USDU-Dólar universitario"]
["UTM","Unidad Tributaria Mensual","UTM-Unidad Tributaria Mensual"]
["UYU","Peso uruguayo","UYU-Peso uruguayo"]
["UZS","Sum de Uzbequistán","UZS-Sum de Uzbequistán"]
["VEB","Bolívar venezolano (ant.)","VEB-Bolívar venezolano (ant.)"]
["VEF","Bolívar venezolano","VEF-Bolívar venezolano"]
["VES","Bolívar venezolano","VES-Bolívar venezolano"]
["VND","Dong vietnamita","VND-Dong vietnamita"]
["VUV","Vatu Vanuatu","VUV-Vatu Vanuatu"]
["WST","Tala samoano","WST-Tala samoano"]
["XAF","Franco CFA gabonés BEAC","XAF-Franco CFA gabonés BEAC"]
["XCD","Dólar caribeño oriental","XCD-Dólar caribeño oriental"]
["XEU","Unidad Monetaria Europea (ECU)","XEU-Unidad Monetaria Europea (ECU)"]
["XOF","Franco CFA benimés BCEAO","XOF-Franco CFA benimés BCEAO"]
["XPF","Franco CFP","XPF-Franco CFP"]
["YER","Rial yemení","YER-Rial yemení"]
["YUM","Dinar nuevo yugoslavo (antiguo)","YUM-Dinar nuevo yugoslavo (antiguo)"]
["ZAR","Rand sudafricano","ZAR-Rand sudafricano"]
["ZMW","Kwacha zambiano (nvo.)","ZMW-Kwacha zambiano (nvo.)"]
["ZRM",null,"ZRM-"]
["ZRN","Zaire (ant.)","ZRN-Zaire (ant.)"]
["ZRO","Zaire (ant.)","ZRO-Zaire (ant.)"]
["ZWL","Dólar Zimbabuense (nuevo)","ZWL-Dólar Zimbabuense (nuevo)"]